bitfinex-derivatives/quotes_ETHF0:USTF0_20250701
["timestamp","ask_amount","ask_price","bid_price","bid_amount"]
[1751366842353,2.3980137,2453.0,2452.9,25.84113]
[1751366842853,1.7392137,2453.0,2452.9,25.84113]
[1751366843550,0.9240937,2453.0,2452.9,25.84113]
[1751366843947,1.7392137,2453.0,2452.9,25.84113]
[1751366844755,0.9240937,2453.0,2452.9,25.84113]
[1751366845157,1.7392137,2453.0,2452.9,25.84113]
[1751366847859,0.9240937,2453.0,2452.9,25.84113]
[1751366848456,0.92807498,2453.0,2452.9,25.84116]
[1751366849957,1.74319498,2453.0,2452.9,25.84116]
[1751366850259,0.92807498,2453.0,2452.9,25.84116]
[1751366850769,0.92807498,2453.0,2452.9,27.15786]
[1751366854865,0.92807498,2453.0,2452.9,2.13186]
[1751366855063,0.92807498,2453.0,2452.9,39.80026479]
[1751366862580,1.74319498,2453.0,2452.9,39.80026479]
[1751366863177,1.74319498,2453.0,2452.9,28.15226479]
[1751366864581,1.74319498,2453.0,2452.9,28.15026479]
[1751366865580,0.92807498,2453.0,2452.9,28.15026479]
[1751366865983,1.74319498,2453.0,2452.9,28.15026479]
[1751366866375,0.92807498,2453.0,2452.9,28.15026479]
[1751366866574,1.74319498,2453.0,2452.9,28.15026479]
[1751366867076,0.92807498,2453.0,2452.9,28.15026479]
[1751366867679,1.74319498,2453.0,2452.9,28.15026479]
[1751366868278,0.92807498,2453.0,2452.9,28.15026479]
[1751366868878,1.74319498,2453.0,2452.9,28.15026479]
[1751366869577,1.74319498,2453.0,2452.9,28.14526479]
[1751366871385,0.92807498,2453.0,2452.9,28.14526479]
[1751366881491,0.92807498,2453.0,2452.9,29.54066479]
[1751366884794,0.92807498,2453.0,2452.9,28.12426479]
[1751366884993,0.92807498,2453.0,2452.9,28.81946479]
[1751366885884,0.92807498,2453.0,2452.9,40.43746479]
[1751366893795,0.92807498,2453.0,2452.9,40.41046479]
[1751366894902,0.92807498,2453.0,2452.9,3.84846479]
[1751366895202,0.92807498,2453.0,2452.9,40.40946479]
[1751366895898,1.74319498,2453.0,2452.9,3.84846479]
[1751366896098,1.74319498,2453.0,2452.9,39.71226479]
[1751366896399,1.74319498,2453.0,2452.9,28.11026479]
[1751366898102,0.92807498,2453.0,2452.9,28.11026479]
[1751366898296,1.74319498,2453.0,2452.9,28.11026479]
[1751366901204,0.92807498,2453.0,2452.9,28.11026479]
[1751366901903,1.74319498,2453.0,2452.9,0.81516]
[1751366902199,3.71019498,2453.0,2452.9,0.81516]
[1751366902504,3.71019498,2453.0,2452.7,12.41622]
[1751366902505,0.81519,2452.8,2452.7,12.41622]
[1751366902702,1.74326498,2452.8,2452.7,37.36722]
[1751366903104,3.04616498,2452.8,2452.7,37.36722]
[1751366903293,3.04616498,2452.8,2452.7,0.81522]
[1751366903497,3.04616498,2452.8,2452.7,25.76522]
[1751366905199,3.04616498,2452.8,2452.7,0.81522]
[1751366905402,3.04616498,2452.8,2452.7,25.76522]
[1751366905899,3.04616498,2452.8,2452.3,0.6649]
[1751366905900,11.60708977,2452.8,2452.1,2.43452391]
[1751366906098,0.81539,2452.3,2452.1,14.60500479]
[1751366906303,0.81539,2452.2,2452.1,11.602]
[1751366906504,0.81542,2452.1,2452.0,2.33810479]
[1751366906709,0.81542,2452.1,2452.0,25.76343]
[1751366906912,2.12832,2452.1,2452.0,25.76343]
[1751366907199,0.81546,2452.0,2451.9,3.25000391]
[1751366907408,2.12836,2452.0,2451.9,28.19800391]
[1751366907908,2.12836,2452.0,2451.9,28.19900391]
[1751366908207,2.12836,2452.0,2451.9,25.76448]
[1751366909007,1.3129,2452.0,2451.9,25.76448]
[1751366909406,3.04604418,2452.0,2451.9,25.76448]
[1751366909699,3.04604418,2452.0,2451.5,2.03906]
[1751366909700,7.23058418,2452.0,2451.5,2.03906]
[1751366909907,0.81553,2451.8,2451.7,0.81553]
[1751366910107,2.89801,2451.9,2451.8,0.81552]
[1751366910308,2.45309033,2451.9,2451.8,0.81552]
[1751366910607,7.45309033,2451.9,2451.8,0.81552]
[1751366911208,7.45307033,2451.9,2451.8,0.81552]
[1751366911910,1.63758033,2451.9,2451.8,3.15362479]
[1751366912209,0.91768033,2451.9,2451.8,3.15362479]
[1751366912713,4.76110286,2452.6,2452.5,0.81529]
[1751366912905,1.6141461,2452.6,2452.5,0.81529]
[1751366913098,1.6141461,2452.6,2452.5,25.76229]
[1751366913806,4.86156896,2452.6,2452.5,0.81529]
[1751366914209,4.83592798,2452.6,2452.5,0.81529]
[1751366914411,1.6141461,2452.6,2452.5,3.15339479]
[1751366914610,1.6141461,2452.6,2452.5,0.81529]
[1751366915007,2.4294061,2452.6,2452.5,0.81529]
[1751366915309,0.81532,2452.5,2452.4,0.8153]
[1751366915611,0.81532,2452.5,2452.3,25.76134]
[1751366915612,0.81532,2452.4,2452.3,25.76134]
[1751366915808,2.3985661,2452.4,2452.3,0.81534]
[1751366916010,2.3985661,2452.4,2452.3,25.76134]
[1751366916914,0.81541,2452.2,2452.1,25.7604]
[1751366917707,1.73206131,2452.2,2452.1,25.7604]
[1751366918308,0.81541,2452.2,2452.1,25.7604]
[1751366918814,1.73201898,2452.2,2452.1,25.7604]
[1751366919611,0.91660898,2452.2,2452.1,25.7604]
[1751366919912,1.73199898,2452.2,2452.1,0.8154]
[1751366924717,0.91660898,2452.2,2452.1,0.8154]
[1751366925118,1.73199898,2452.2,2452.1,0.8154]
[1751366927022,1.73199898,2452.2,2452.1,1.5219]
[1751366929321,0.91660898,2452.2,2452.1,1.5219]
[1751366929521,0.81539,2452.3,2452.2,0.81536]
[1751366929720,1.73041007,2452.3,2452.2,0.81536]
[1751366929919,1.73041007,2452.3,2452.2,3.15346479]
[1751366936126,1.73041007,2452.3,2452.2,28.08646479]
[1751366936327,1.73041007,2452.3,2452.2,3.15346479]
[1751366936628,1.73041007,2452.3,2452.2,0.81536]
[1751366936829,1.73041007,2452.3,2452.2,25.74736]
[1751366937324,0.91502007,2452.3,2452.2,25.74736]
[1751366937525,0.91502007,2452.3,2452.2,28.08546479]
[1751366937837,0.91502007,2452.3,2452.2,29.52036479]
[1751366938034,0.91502007,2452.3,2452.2,30.17436479]
[1751366939927,1.73038007,2452.3,2452.2,27.83426]
[1751366940118,1.73038007,2452.3,2452.2,26.39936]
[1751366940721,0.91502007,2452.3,2452.2,26.39836]
[1751366941127,1.73038007,2452.3,2452.2,26.39836]
[1751366941733,0.91502007,2452.3,2452.2,26.39836]
[1751366942028,0.91502007,2452.3,2452.2,27.74156]
[1751366943327,1.73038007,2452.3,2452.2,27.74156]
[1751366944726,0.91502007,2452.3,2452.2,27.74156]
[1751366945532,1.73038007,2452.3,2452.2,27.74156]
[1751366945833,0.91502007,2452.3,2452.2,27.74156]
[1751366947624,1.73038007,2452.3,2452.2,27.74156]
[1751366949336,0.91502007,2452.3,2452.2,27.74156]
[1751366949540,1.73038007,2452.3,2452.2,27.74156]
[1751366950133,0.91502007,2452.3,2452.2,27.74156]
[1751366950730,1.73038007,2452.3,2452.2,27.74156]
[1751366951336,1.73038007,2452.3,2452.2,0.81536]
[1751366951637,1.73038007,2452.3,2452.2,25.73636]
[1751366958137,1.73038007,2452.3,2452.2,0.81536]
[1751366958437,0.81542,2452.1,2452.0,12.40743]
[1751366958740,1.73044007,2452.1,2452.0,37.32143]
[1751366961440,0.81546,2452.0,2451.9,1.47527]
[1751366961640,1.73048007,2452.0,2451.9,26.38727]
[1751366964439,1.73048007,2452.0,2451.9,25.5698]
[1751366964838,1.73048007,2452.0,2451.9,0.6598]
[1751366965040,1.73048007,2452.0,2451.9,25.5698]
[1751366965540,1.73048007,2452.0,2451.9,0.6598]
[1751366965841,1.73048007,2452.0,2451.9,25.5698]
[1751366966540,1.73048007,2452.0,2451.9,26.38529]
[1751366966736,1.73048007,2452.0,2451.9,25.5698]
[1751366967135,1.73048007,2452.0,2451.9,26.38529]
[1751366968235,3.25312486,2452.0,2451.4,2.43452391]
[1751366968441,2.33810479,2451.5,2451.2,2.43452391]
[1751366968638,2.0364,2451.9,2451.7,0.81554]
[1751366968842,1.58709823,2451.8,2451.7,3.15366479]
[1751366969142,2.40261823,2451.8,2451.7,2.33810479]
[1751366969344,1.58709823,2451.8,2451.7,3.15366479]
[1751366969538,0.91299823,2451.8,2451.7,3.15366479]
[1751366969736,0.81533,2452.4,2452.0,2.03865]
[1751366969937,0.81533,2452.4,2452.3,2.33810479]
[1751366970138,1.3496,2452.6,2452.1,26.9783]
[1751366970343,0.81532,2452.5,2452.4,0.81532]
[1751366970643,0.81536,2452.3,2452.2,3.15347479]
[1751366970841,0.81536,2452.3,2452.2,28.05947479]
[1751366971037,0.81536,2452.3,2452.2,27.24410479]
[1751366971238,2.33810479,2452.4,2451.7,59.399]
[1751366971439,2.72906,2452.5,2452.0,2.33810479]
[1751366971440,2.0237,2452.3,2452.0,2.33810479]
[1751366971640,0.81539,2452.2,2452.1,24.906]
[1751366972038,0.6741,2452.3,2452.1,24.906]
[1751366972236,0.6741,2452.3,2452.1,25.5654]
[1751366972237,0.81539,2452.2,2452.1,25.5654]
[1751366972437,1.48948,2452.3,2452.2,0.81539]
[1751366973346,0.6741,2452.3,2452.2,0.81539]
[1751366973748,0.6908,2452.5,2452.4,0.81532]
[1751366974046,0.81532,2452.4,2452.3,0.81536]
[1751366974546,0.81532,2452.4,2452.2,2.33810479]
[1751366974547,1.50611,2452.5,2452.4,0.81532]
[1751366974843,0.81532,2452.4,2452.3,0.81532]
[1751366975435,0.81536,2452.3,2452.2,3.15347479]
[1751366976143,0.81535,2452.4,2452.3,0.81535]
[1751366976747,0.81531,2452.5,2452.4,0.8153]
[1751366977142,2.86597,2452.6,2452.5,0.81529]
[1751366977347,2.86597,2452.6,2452.5,24.903]
[1751366977348,0.81526,2452.6,2452.5,24.903]
[1751366978043,0.81526,2452.6,2452.5,25.6047]
[1751366979745,0.81526,2452.6,2452.5,26.41999]
[1751366980352,0.81524,2452.7,2452.6,0.81523]
[1751366980556,0.81524,2452.7,2452.6,3.15333479]
[1751366980743,0.81521,2452.8,2452.7,0.81521]
[1751366980944,4.87864936,2452.9,2452.8,0.81519]
[1751366981453,3.23690691,2452.9,2452.8,0.81519]
[1751366981750,3.23690691,2452.9,2452.8,3.15329479]
[1751366982150,4.05206691,2452.9,2452.8,0.81519]
[1751366982544,4.05206691,2452.9,2452.8,1.48569]
[1751366982750,3.23690691,2452.9,2452.8,1.48569]
[1751366982950,4.05206691,2452.9,2452.8,1.48569]
[1751366983354,0.81516,2452.9,2452.8,0.6705]
[1751366984756,0.81519,2452.8,2452.7,0.8152]
[1751366984956,0.81519,2452.8,2452.7,25.71322]
[1751366985152,0.81522,2452.7,2452.6,0.6801]
[1751366985350,0.81522,2452.7,2452.6,26.39236]
[1751366986156,0.81522,2452.7,2452.6,1.49536]
[1751366986356,0.81522,2452.7,2452.6,26.39236]
[1751366986750,0.81522,2452.7,2452.6,1.49536]
[1751366986947,0.81522,2452.7,2452.6,26.39136]
[1751366987955,1.76864515,2452.7,2452.6,0.6801]
[1751366988253,0.81536,2452.3,2452.2,0.81537]
[1751366988452,0.81536,2452.3,2452.2,37.1388]
[1751366988658,1.76878515,2452.3,2452.2,37.1388]
[1751366988863,1.76878515,2452.3,2452.2,0.6728]
[1751366989162,1.76878515,2452.3,2452.2,37.1388]
[1751366989361,1.76878515,2452.3,2452.2,37.95419]
[1751366990060,0.95342515,2452.3,2452.2,39.28619]
[1751366991362,1.76878515,2452.3,2452.2,39.28619]
[1751366994061,1.76878515,2452.3,2452.2,2.82019]
[1751366994260,1.76878515,2452.3,2452.2,39.28419]
[1751366994965,1.76878515,2452.3,2452.2,1.48819]
[1751366995366,1.76878515,2452.3,2452.2,37.95219]
[1751366995561,1.76878515,2452.3,2452.2,0.6728]
[1751366995762,1.76878515,2452.3,2452.2,26.38019]
[1751366996971,1.76878515,2452.3,2452.2,1.48819]
[1751366997166,1.76878515,2452.3,2452.2,26.38019]
[1751366997469,1.76878515,2452.3,2452.2,0.6728]
[1751366997769,0.81539,2452.2,2452.1,12.38642]
[1751366997965,1.76881515,2452.2,2452.1,37.27842]
[1751366998873,0.95342515,2452.2,2452.1,37.27842]
[1751366999574,1.76881515,2452.2,2452.1,37.27842]
[1751367000066,0.95342515,2452.2,2452.1,37.27842]
[1751367000471,0.95342515,2452.2,2452.1,38.58422]
[1751367005377,0.95342515,2452.2,2452.1,2.12122]
[1751367005574,0.95342515,2452.2,2452.1,38.58222]
[1751367006677,0.95342515,2452.2,2452.1,38.58122]
[1751367009278,0.81526,2452.7,2452.6,0.81523]
[1751367009477,0.81526,2452.7,2452.6,25.70323]
[1751367011172,0.7122,2452.8,2452.7,0.81523]
[1751367011374,0.7122,2452.8,2452.7,3.15333479]
[1751367011567,0.81518,2452.9,2452.8,0.8152]
[1751367011773,0.81518,2452.9,2452.8,26.4033]
[1751367011973,4.71545691,2453.0,2452.9,0.81516]
[1751367012873,4.05205691,2453.0,2452.9,0.81516]
[1751367014777,0.81515,2453.0,2452.9,0.81516]
[1751367015379,0.81516,2452.9,2452.8,1.51727]
[1751367015773,0.81516,2452.9,2452.8,26.40127]
[1751367016474,3.02570479,2453.1,2452.4,2.03828]
[1751367016769,3.02570479,2453.1,2452.7,0.81518]
[1751367016770,1.51293,2452.8,2452.7,0.81518]
[1751367018982,0.6977,2452.8,2452.7,0.81518]
[1751367019284,3.92650691,2453.2,2453.0,0.8151]
[1751367019584,3.92650691,2453.2,2453.0,25.6961]
[1751367019585,0.81513,2453.1,2453.0,25.6961]
[1751367019876,1.50466,2453.2,2453.1,0.8151]
[1751367020381,1.50466,2453.2,2453.1,3.15320479]
[1751367020880,0.6896,2453.2,2453.1,3.15320479]
[1751367021082,0.81506,2453.3,2453.2,0.81506]
[1751367021280,1.75995064,2453.3,2453.2,0.81506]
[1751367021482,1.75995064,2453.3,2453.2,1.52966]
[1751367023084,0.94489064,2453.3,2453.2,1.52966]
[1751367023679,1.75992064,2453.3,2453.2,1.52966]
[1751367023880,0.94489064,2453.3,2453.2,1.52966]
[1751367025384,0.94489064,2453.3,2453.2,2.83126]
[1751367025881,3.23690691,2453.7,2453.6,0.81493]
[1751367025882,4.05180691,2453.7,2453.6,0.81493]
[1751367026081,4.05180691,2453.7,2453.6,25.68893]
[1751367026386,0.8149,2453.7,2453.6,25.68893]
[1751367026587,4.64500691,2453.8,2453.7,0.8149]
[1751367026884,5.45989691,2453.8,2453.7,0.8149]
[1751367027075,2.22299,2453.8,2453.7,0.8149]
[1751367028485,0.6896,2453.8,2453.7,0.8149]
[1751367029284,4.05172691,2454.0,2453.9,0.81483]
[1751367029485,3.23690691,2454.0,2453.9,25.68583]
[1751367029686,0.8148,2454.0,2453.9,25.68583]
[1751367032390,0.81493,2453.7,2453.6,12.37589]
[1751367032586,0.81493,2453.7,2453.6,37.24289]
[1751367033086,2.23033,2453.7,2453.6,37.24289]
[1751367033986,1.47219,2453.8,2453.7,0.8149]
[1751367034192,0.81486,2453.9,2453.8,0.81481]
[1751367034690,1.50217,2454.1,2454.0,0.8148]
[1751367034883,0.6874,2454.1,2454.0,25.6798]
[1751367036003,1.50216,2454.1,2454.0,25.6798]
[1751367036391,0.81476,2454.2,2454.1,0.81476]
[1751367036890,0.81476,2454.2,2454.1,1.47546]
[1751367037685,1.75112766,2454.2,2454.1,1.47546]
[1751367038091,0.93636766,2454.2,2454.1,1.47546]
[1751367038290,1.75109766,2454.2,2454.1,1.47546]
[1751367039395,0.93636766,2454.2,2454.1,1.47546]
[1751367039692,1.75109766,2454.2,2454.1,1.47546]
[1751367044390,1.75109766,2454.2,2454.1,0.6607]
[1751367044594,0.81476,2454.1,2454.0,0.81479]
[1751367044795,4.75483245,2454.1,2454.0,25.67179]
[1751367045190,2.41672766,2454.1,2454.0,25.67179]
[1751367045390,1.75112766,2454.1,2454.0,25.67179]
[1751367045891,0.93636766,2454.1,2454.0,25.67179]
[1751367046087,0.93636766,2454.1,2454.0,28.00989479]
[1751367046291,0.93636766,2454.1,2454.0,29.35129479]
[1751367050395,0.93636766,2454.1,2454.0,27.01319]
[1751367051700,1.75112766,2454.1,2454.0,37.21979]
[1751367052094,4.08923245,2454.1,2454.0,0.8148]
[1751367052595,4.08923245,2454.1,2454.0,25.6668]
[1751367052795,4.76853245,2454.1,2454.0,25.6668]
[1751367055303,0.81483,2453.9,2453.8,13.07422]
[1751367055505,1.75119766,2453.9,2453.8,37.92522]
[1751367056002,2.43409766,2453.9,2453.8,37.92522]
[1751367057304,0.93636766,2453.9,2453.8,37.92522]
[1751367057506,0.93636766,2453.9,2453.8,40.26332479]
[1751367057699,3.42174,2454.4,2453.8,44.44850479]
[1751367057700,0.8147,2454.4,2453.8,44.44850479]
[1751367057905,0.8147,2454.4,2454.3,0.81466]
[1751367058105,0.8147,2454.4,2454.3,25.66466]
[1751367058305,0.8147,2454.4,2454.3,26.36426]
[1751367058603,4.60370691,2454.7,2454.3,25.5496]
[1751367058803,0.81466,2454.5,2454.4,0.81462]
[1751367060011,0.81466,2454.4,2454.3,26.36428]
[1751367060401,0.81466,2454.4,2453.9,2.70487]
[1751367060402,0.8147,2454.3,2454.2,12.36672]
[1751367060597,1.4851,2454.3,2454.2,37.21672]
[1751367060801,1.4851,2454.3,2454.2,24.849]
[1751367060998,2.8478,2454.3,2454.2,24.849]
[1751367061202,0.81473,2454.2,2454.1,0.81474]
[1751367061404,3.80763479,2454.2,2454.1,25.66274]
[1751367061608,5.17033479,2454.2,2454.1,25.66274]
[1751367062204,5.17033479,2454.2,2454.1,0.81474]
[1751367062403,5.17033479,2454.2,2454.1,25.66274]
[1751367062610,0.8147,2454.4,2454.1,24.848]
[1751367062812,0.8147,2454.4,2454.3,0.81467]
[1751367063013,0.81467,2454.5,2454.4,0.81463]
[1751367063317,0.81471,2454.4,2454.3,0.81467]
[1751367063711,0.81466,2454.5,2454.4,0.81463]
[1751367063918,0.81466,2454.5,2454.4,25.66263]
[1751367064717,0.81466,2454.5,2454.4,24.848]
[1751367064918,0.81466,2454.5,2454.4,25.66266]
[1751367065618,2.20296,2454.5,2454.4,25.66266]
[1751367066220,2.20296,2454.5,2454.4,24.848]
[1751367066417,2.20296,2454.5,2454.3,0.81468]
[1751367066418,0.81466,2454.4,2454.3,0.81468]
[1751367066718,0.81466,2454.4,2454.3,25.66168]
[1751367067716,3.15276479,2454.4,2454.3,0.8147]
[1751367067924,1.3883,2454.5,2454.3,0.8147]
[1751367067925,0.81465,2454.5,2454.4,0.81466]
[1751367068219,0.81466,2454.4,2454.3,25.66068]
[1751367068518,0.81476,2454.2,2454.1,0.81471]
[1751367068821,3.15286479,2454.2,2454.1,25.65976]
[1751367069220,3.86936479,2454.2,2454.1,25.65976]
[1751367069522,0.81476,2454.1,2454.0,13.03239]
[1751367069710,1.74242366,2454.1,2454.0,11.551]
[1751367069918,3.79822366,2454.1,2454.0,36.396]
[1751367071120,0.81486,2453.8,2453.7,13.03408]
[1751367071324,0.81486,2453.8,2453.7,37.21088]
[1751367071622,1.74257343,2453.8,2453.7,37.21088]
[1751367072018,0.92771343,2453.8,2453.7,37.21088]
[1751367072425,0.92771343,2453.8,2453.7,37.20988]
[1751367072623,0.92771343,2453.8,2453.7,38.64388]
[1751367072824,1.74257343,2453.8,2453.7,37.20988]
[1751367073726,1.74257343,2453.8,2453.7,25.65988]
[1751367074226,0.8149,2453.7,2453.6,1.48311]
[1751367074524,1.74261343,2453.7,2453.6,26.32811]
[1751367074919,0.81499,2453.5,2453.4,0.81496]
[1751367075128,1.74191072,2453.6,2453.5,0.81496]
[1751367075329,1.74191072,2453.6,2453.5,25.65896]
[1751367077633,0.92696072,2453.6,2453.5,25.65896]
[1751367078026,0.92696072,2453.6,2453.5,27.08756]
[1751367082136,3.23690691,2454.2,2454.1,0.81476]
[1751367082337,4.16254788,2454.2,2454.1,25.65976]
[1751367083441,1.74037097,2454.2,2454.1,25.65976]
[1751367083836,0.92564097,2454.2,2454.1,25.65976]
[1751367084843,1.74037097,2454.2,2454.1,25.65976]
[1751367085344,0.92564097,2454.2,2454.1,25.65976]
[1751367087239,0.92564097,2454.2,2454.1,29.42096479]
[1751367090048,0.6681,2454.7,2454.6,0.8146]
[1751367090247,0.6681,2454.7,2454.6,25.6566]
[1751367090445,0.03845,2454.9,2454.6,29.21660479]
[1751367090652,0.03845,2454.9,2454.8,0.81453]
[1751367090843,0.03845,2454.9,2454.8,25.65453]
[1751367091044,0.85297,2454.9,2454.8,24.84]
[1751367091344,0.85297,2454.9,2454.8,25.65453]
[1751367094149,0.85297,2454.9,2454.8,24.84]
[1751367095548,0.81453,2454.8,2454.7,0.81454]
[1751367095748,0.81453,2454.8,2454.7,25.65254]
[1751367098045,0.85297,2454.9,2454.8,0.81453]
[1751367098241,0.03845,2454.9,2454.8,3.15263479]
[1751367098747,0.03845,2454.9,2454.8,4.52253479]
[1751367099343,3.23690691,2455.7,2454.8,11.04610958]
[1751367099553,3.23690691,2456.0,2455.8,0.8142]
[1751367099750,5.27193691,2456.4,2455.9,25.65115]
[1751367100054,1.3774,2456.5,2456.2,2.33810479]
[1751367100348,2.1914,2456.5,2456.4,0.814]
[1751367100546,1.3774,2456.5,2456.4,0.814]
[1751367100848,0.814,2456.4,2456.3,24.862]
[1751367101251,0.814,2456.4,2456.3,25.67603]
[1751367101747,0.814,2456.4,2456.3,24.862]
[1751367101946,1.72533797,2456.4,2456.3,24.862]
[1751367102948,3.03423797,2456.4,2456.3,24.862]
[1751367103352,3.03423797,2456.4,2456.3,24.855]
[1751367103947,3.03423797,2456.4,2455.8,2.33810479]
[1751367103948,0.81413,2456.0,2455.9,0.81414]
[1751367104253,0.81415,2456.0,2455.9,37.20814]
[1751367104453,0.81409,2456.2,2456.1,0.81409]
[1751367105350,0.8141,2456.1,2456.0,0.8141]
[1751367105548,0.81409,2456.2,2456.1,0.81409]
[1751367106352,0.81406,2456.3,2456.2,0.75830065]
[1751367106553,0.81406,2456.3,2456.2,25.60730065]
[1751367106752,0.81403,2456.4,2456.3,0.81403]
[1751367106948,0.81403,2456.3,2456.2,25.66304]
[1751367107247,2.19139,2456.5,2456.4,0.814]
[1751367107452,2.19139,2456.5,2456.2,27.18710479]
[1751367107453,0.81402,2456.4,2456.3,0.81401]
[1751367107953,0.81403,2456.3,2456.2,25.66305]
[1751367108256,0.81407,2456.2,2456.1,12.2278]
[1751367108449,0.81407,2456.2,2456.1,37.8939]
[1751367108650,0.81407,2456.2,2456.1,25.5268]
[1751367109051,0.81407,2456.2,2456.1,26.3409]
[1751367109250,0.81407,2456.2,2456.1,25.5268]
[1751367109450,0.81407,2456.2,2456.1,26.3409]
[1751367109647,0.81407,2456.2,2456.1,25.5268]
[1751367109853,0.81406,2456.3,2456.2,0.81406]
[1751367110255,0.81407,2456.2,2456.1,26.34088]
[1751367111854,0.81407,2456.2,2456.1,25.5268]
[1751367112055,0.81407,2456.2,2456.1,25.5228]
[1751367112355,0.81407,2456.2,2456.1,26.3369]
[1751367112548,0.81407,2456.2,2456.1,25.5228]
[1751367113057,0.81407,2456.2,2456.1,26.3369]
[1751367113250,0.81407,2456.2,2456.1,0.6778]
[1751367113450,0.81407,2456.2,2456.1,26.3319]
[1751367114663,0.81407,2456.2,2456.1,25.5178]
[1751367115161,0.81407,2456.2,2456.1,26.3319]
[1751367115357,0.81414,2456.1,2456.0,0.81411]
[1751367115656,0.81414,2456.1,2456.0,25.64211]
[1751367120560,0.81414,2456.1,2456.0,27.03381]
[1751367121256,0.81408,2456.2,2456.1,0.81405]
[1751367121657,1.72283632,2456.2,2456.1,0.81405]
[1751367122060,0.81406,2456.3,2456.2,0.81407]
[1751367122362,1.7228416,2456.3,2456.2,24.825]
[1751367124459,1.7228416,2456.3,2456.2,25.63907]
[1751367124660,1.7228116,2456.3,2456.2,25.63907]
[1751367124961,0.9087816,2456.3,2456.2,25.63907]
[1751367125265,0.814,2456.4,2456.3,0.81403]
[1751367125458,1.72423069,2456.4,2456.3,1.50773]
[1751367127365,1.72423069,2456.4,2456.3,0.6937]
[1751367127659,3.24833548,2456.4,2456.3,24.821]
[1751367127867,1.72423069,2456.4,2456.3,24.821]
[1751367128167,4.78283548,2456.4,2456.3,24.821]
[1751367128363,6.18063548,2456.4,2456.3,24.821]
[1751367129662,6.18063548,2456.4,2456.3,25.63503]
[1751367130072,2.44473069,2456.4,2456.3,25.63503]
[1751367130565,1.72423069,2456.4,2456.3,25.63503]
[1751367130961,0.91023069,2456.4,2456.3,25.63503]
[1751367131163,0.91023069,2456.4,2456.3,27.07853]
[1751367132164,4.15279508,2456.4,2456.3,27.07853]
[1751367132466,0.91023069,2456.4,2456.3,27.07853]
[1751367133566,0.91484956,2456.5,2456.3,26.2645]
[1751367133768,0.91484956,2456.4,2456.3,27.07853]
[1751367134067,4.73758439,2456.7,2456.6,0.81393]
[1751367134266,4.73758439,2456.7,2456.6,25.63393]
[1751367135065,1.49502,2456.7,2456.6,25.63393]
[1751367136368,0.6811,2456.7,2456.6,25.63393]
[1751367136568,3.95106439,2456.8,2456.7,0.8139]
[1751367136569,3.24256439,2456.8,2456.7,0.8139]
[1751367136963,4.05641439,2456.9,2456.8,0.81387]
[1751367138366,0.81385,2456.9,2456.8,0.81387]
[1751367138564,0.8139,2456.7,2456.6,25.63388]
[1751367138866,0.8139,2456.8,2456.7,0.81387]
[1751367141262,0.8139,2456.8,2456.7,25.63187]
[1751367142871,0.81386,2456.9,2456.8,0.81384]
[1751367143971,0.81387,2456.8,2456.7,25.63188]
[1751367146872,0.81387,2456.8,2456.7,0.81388]
[1751367147165,0.814,2456.5,2456.4,0.81395]
[1751367147368,0.814,2456.5,2456.4,25.62995]
[1751367148973,0.814,2456.4,2456.3,0.81402]
[1751367149270,0.81406,2456.3,2456.2,12.34804]
[1751367149472,0.81406,2456.3,2456.2,37.16404]
[1751367149968,0.81406,2456.3,2456.2,0.81404]
[1751367150178,0.81406,2456.3,2456.2,37.16404]
[1751367151673,0.81407,2456.2,2456.1,12.34809]
[1751367151874,0.81407,2456.2,2456.1,36.35]
[1751367152383,0.81407,2456.2,2456.1,37.1641]
[1751367153680,0.6649,2456.3,2456.2,0.81407]
[1751367154280,1.47893,2456.3,2456.2,0.81407]
[1751367155878,0.81402,2456.4,2456.3,0.81403]
[1751367156079,0.81402,2456.4,2456.3,25.63103]
[1751367156480,0.81402,2456.4,2456.3,24.817]
[1751367156982,0.81402,2456.4,2456.0,0.81411]
[1751367156983,0.8141,2456.1,2456.0,0.81411]
[1751367157178,0.81413,2456.0,2455.9,11.535]
[1751367157374,0.81413,2456.0,2455.9,36.352]
[1751367157576,0.81417,2455.9,2455.8,58.648]
[1751367157775,0.81422,2455.8,2455.5,2.03574]
[1751367157979,0.81422,2455.8,2455.7,0.8142]
[1751367159084,0.81422,2455.8,2455.7,25.6312]
[1751367159480,0.81422,2455.8,2455.7,24.817]
[1751367159680,4.37357479,2455.9,2455.5,12.34928]
[1751367159979,0.81427,2455.6,2455.5,12.34928]
[1751367160184,0.81425,2455.7,2455.6,0.81424]
[1751367161380,0.81425,2455.7,2455.6,25.63224]
[1751367161777,0.7024,2456.1,2455.6,27.15610479]
[1751367161981,0.81418,2456.0,2455.9,0.81415]
[1751367162181,0.8142,2455.9,2455.8,0.81418]
[1751367162383,0.8142,2455.9,2455.8,24.818]
[1751367162886,0.8142,2455.9,2455.8,25.6322]
[1751367163188,0.81417,2455.9,2455.8,25.6322]
[1751367164088,0.81417,2455.9,2455.8,24.818]
[1751367166983,4.79317,2456.1,2455.6,3.15234479]
[1751367166984,0.81423,2455.7,2455.6,3.15234479]
[1751367167288,0.81423,2455.7,2455.6,27.97134479]
[1751367171993,0.81423,2455.7,2455.6,25.63324]
[1751367172195,0.81423,2455.7,2455.6,27.97134479]
[1751367173095,6.82851,2456.1,2455.6,27.15710479]
[1751367173296,0.81423,2455.8,2455.7,0.8142]
[1751367174491,0.81415,2456.0,2455.9,0.81413]
[1751367174692,0.81415,2456.0,2455.9,27.15810479]
[1751367175491,0.81413,2456.0,2455.9,24.819]
[1751367175695,1.46943,2456.0,2455.9,24.819]
[1751367175890,0.8142,2455.8,2455.7,2.33810479]
[1751367176089,2.6907,2456.0,2455.6,0.81424]
[1751367176090,0.81423,2455.7,2455.6,0.81424]
[1751367176295,0.81423,2455.7,2455.6,25.63324]
[1751367177000,0.81423,2455.7,2455.6,24.819]